{"text_format":"1","workbook":"xlsx","n_sheets":5,"sheets":["Home","Cotisations","Prestations","Liste","Feuil3"],"not_rendered":{"charts":0,"images":1,"macros":1,"external_links":0,"defined_names":3,"comments":0,"pivot_tables":0},"unopened":[],"bounds":{"document_bytes":16777216,"sheet_cells":100000,"rows_first":2000,"rows_last":500,"rows_between":2000,"halvings":0,"cell_chars":16384,"cell_head_chars":4096},"cells_cut":0,"cells_raw":0,"read":"whole","date_system":"1900"}

{"sheet":"Home","index":0,"n_rows":72,"n_cols":17,"rows_kept":72,"cut":false,"hidden":false,"merged":[[12,7,12,9],[32,6,34,12],[36,4,36,12],[38,4,38,11],[40,7,40,8],[62,7,62,12],[51,4,53,4],[0,4,1,12],[12,5,12,6],[18,10,18,12],[18,5,18,8],[8,9,9,12],[14,5,14,6],[32,4,32,5],[7,5,7,7],[7,10,7,12],[30,5,30,8],[30,10,30,12],[20,4,20,5],[20,6,20,12],[11,7,11,9],[44,6,44,8],[40,10,40,11],[58,5,58,6],[56,4,56,12],[44,9,44,10],[42,4,42,11],[51,5,53,10],[48,6,48,10]]}
[null,null,null,null,"Fiche de transmission de solde à liquider",null,null,null,null,null,null,null,null,null,null,"Veuillez remplir les colonnes avec les éléments demandés :"]
[]
[null,null,null,null,null,null,null,null,null,null,null,null,null,null,null,"N° décompte","Montant du décompte"]
[null,null,null,null,"Le solde à traiter se trouve dans la comptabilité auxiliaire Globaz de :",null,null,null,null,"CCVD"]
[]
[]
[]
[null,null,null,null,"NOM :",null,null,null,null,"NIP :"]
[null,null,null,null,null,{"$f":"IF(F8=\"\",\"Veuillez remplir le champ, ci-dessus!\",\"\")","v":"Veuillez remplir le champ, ci-dessus!"},null,null,null,{"$f":"IF(K8=\"\",\"Veuillez remplir le champ, ci-dessus avec le NIP/NSS du compte annexe concerné!\",\"\")","v":"Veuillez remplir le champ, ci-dessus avec le NIP/NSS du compte annexe concerné!"}]
[]
[]
[]
[]
[]
[null,null,null,null,"Transmis par :","Coti - PCI"]
[]
[]
[null,null,null,null,"Rôle :","Non Affilié"]
[null,null,null,null,"Traitement :","Irrécouvrable - Cotisations personnelles",null,null,null,"Pour CHF :",{"$f":"SUM(Q4:Q28)","v":0}]
[null,null,null,null,null,null,null,{"$f":"IF(SUM(Q4:Q25)=0,\"Veuillez remplir le tableau avec le montant par décompte!\",\"\")","v":"Veuillez remplir le tableau avec le montant par décompte!"}]
[null,null,null,null,"Décomptes/sections :",null,{"$f":"CONCATENATE(P4,IF(P4=\"\",\"\",\",\"),\" \",P5,IF(P5=\"\",\"\",\",\"),\" \",P6,IF(P6=\"\",\"\",\",\"),\" \",P7,IF(P7=\"\",\"\",\",\"),\" \",P8,IF(P8=\"\",\"\",\",\"),\" \",P9,IF(P9=\"\",\"\",\",\"),\" \",P10,IF(P10=\"\",\"\",\",\"),\" \",P11,IF(P11=\"\",\"\",\",\"),\" \",P12,IF(P12=\"\",\"\",\",\"),\" \",P13,IF(P13=\"\",\"\",\",\"),\" \",P14,IF(P14=\"\",\"\",\",\"),P15,IF(P15=\"\",\"\",\",\"),P16,IF(P16=\"\",\"\",\",\"),\" \",P17,IF(P17=\"\",\"\",\",\"),\" \",P18,IF(P18=\"\",\"\",\",\"),\" \",P19,IF(P19=\"\",\"\",\",\"),\" \",P20,IF(P20=\"\",\"\",\",\"),\" \",P21,IF(P21=\"\",\"\",\",\"),\" \",P22,IF(P22=\"\",\"\",\",\"),\" \",P23,IF(P23=\"\",\"\",\",\"),\" \",P24,IF(P24=\"\",\"\",\",\"),\" \",P25,IF(P25=\"\",\"\",\",\"),\" \",P26,IF(P26=\"\",\"\",\",\"),\" \",P27,IF(P27=\"\",\"\",\",\"),\" \",P28,IF(P28=\"\",\"\",\",\"))","v":"                      "}]
[null,null,null,null,{"$f":"IF(SUM(P4:P28)=0,\"Veuillez remplir le tableau avec les numéros de décomptes concernés!\",\"\")","v":"Veuillez remplir le tableau avec les numéros de décomptes concernés!"}]
[]
[null,null,null,null,{"$f":"IF(F19=\"Irrécouvrable - Cotisations paritaires + RDO\",\"Le décompte de l'aspect pénal en vue d'une plainte a été fait?\",\"\")&IF(F19=\"RDO\",\"Le décompte de l'aspect pénal en vue d'une plainte a été fait?\",\"\")","v":""},null,null,null,null,null,null,"oui"]
[]
[null,null,null,null,{"$f":"IF(F19=\"Irrécouvrable - Cotisations paritaires\",\"Est-ce que le dossier a été transmis au SJR?\",\"\")","v":""}]
[]
[]
[]
[null,null,null,null,"Rôle :","APG"]
[null,null,null,null,"Traitement :","Paiement non imputable (à reverser à la Centrale)",null,null,null,"Pour CHF :",{"$f":"SUM(Q4:Q25)","v":0}]
[null,null,null,null,null,null,null,{"$f":"IF(SUM(Q4:Q25)=0,\"Veuillez remplir le tableau avec le montant par décompte!\",\"\")","v":"Veuillez remplir le tableau avec le montant par décompte!"}]
[null,null,null,null,"Décomptes/sections :",null,{"$f":"CONCATENATE(P4,IF(P4=\"\",\"\",\",\"),\" \",P5,IF(P5=\"\",\"\",\",\"),\" \",P6,IF(P6=\"\",\"\",\",\"),\" \",P7,IF(P7=\"\",\"\",\",\"),\" \",P8,IF(P8=\"\",\"\",\",\"),\" \",P9,IF(P9=\"\",\"\",\",\"),\" \",P10,IF(P10=\"\",\"\",\",\"),\" \",P11,IF(P11=\"\",\"\",\",\"),\" \",P12,IF(P12=\"\",\"\",\",\"),\" \",P13,IF(P13=\"\",\"\",\",\"),\" \",P16,IF(P16=\"\",\"\",\",\"),\" \",P17,IF(P17=\"\",\"\",\",\"),\" \",P18,IF(P18=\"\",\"\",\",\"),\" \",P19,IF(P19=\"\",\"\",\",\"),\" \",P20,IF(P20=\"\",\"\",\",\"),\" \",P21,IF(P21=\"\",\"\",\",\"),\" \",P22,IF(P22=\"\",\"\",\",\"),\" \",P23,IF(P23=\"\",\"\",\",\"),\" \",P24,IF(P24=\"\",\"\",\",\"),\" \",P25)","v":"                   "}]
[null,null,null,null,{"$f":"IF(SUM(P4:P25)=0,\"Veuillez remplir le tableau avec les numéros de décomptes concernés!\",\"\")","v":"Veuillez remplir le tableau avec les numéros de décomptes concernés!"}]
[]
[]
[null,null,null,null,"Justifications & Contrôles"]
[]
[null,null,null,null,"Une analyse d'éventuelles compensations telles qu'autorisées dans les Directives sur la Perception des cotisations (DP 7001), dans les Directives sur les Rentes (DR 10802/10907 et suivants) et dans les Directives sur les allocations familiales (DaFAM 802.2) a été effectuée :",null,null,null,null,null,null,null,false]
[]
[null,null,null,null,"Acte de défaut de biens :",null,null,null,null,null,null,null,false]
[]
[null,null,null,null,"Les poursuites sont considérées comme infructueuses ou manifestement sans chance de succès pour les prochains décomptes",null,null,null,null,null,null,null,false]
[]
[null,null,null,null,"Parti sans laisser d'adresse",null,null,null,null,null,null,null,false]
[]
[null,null,null,null,"Succession répudiée ou non ouverte",null,null,null,null,null,null,null,false]
[]
[null,null,null,null,"Affiliation radié ?","Date :",null,null,null,null,null,null,false]
[]
[]
[null,null,null,null,"Autres Motifs :"]
[null,null,null,null,null,null,null,null,null,null,null,null,false]
[]
[]
[]
[null,null,null,null,"Validation & Transmission de l'information"]
[]
[null,null,null,null,"Date :",{"$f":"TODAY()","v":"2017-02-02"}]
[null,null,null,null,null,null,null,null,{"$f":"IF(F59=\"\",\"Veuillez remplir le champ, ci-dessus!\",\"\")","v":""}]
[null,null,null,null,"Motif de blocage du contentieux modifié dans Globaz",null,null,null,null,null,null,null,false]
[]
[null,null,null,null,"Spécifié la raison de la modification :"]
[null,null,null,null,{"$f":"IF(H63=\"\",\"Veuillez remplir le champ, ci-dessus!\",\"\")","v":"Veuillez remplir le champ, ci-dessus!"}]
[null,null,null,null,"Dossier supérieur à CHF 10'000.--, visa de la Direction (Hors crédit)"]
[null,null,null,null,null,null,null,null,null,null,null,null,false]
[]
[]
[]
[null,null,null,null,null,null,null,null,null,null,null,false]
[null,null,null,null,"Cotis",{"$f":"IF(F19=Liste!C1,Liste!D1,IF(Home!F19=Liste!C2,Liste!D2,IF(Home!F19=Liste!C3,Liste!D3,IF(Home!F19=Liste!C4,Liste!D4,IF(Home!F19=Liste!C5,Liste!D5,IF(Home!F19=Liste!C6,Liste!D6,IF(Home!F19=Liste!C7,Liste!D7,\"\")))))))","v":"Traitement irréc - Cotis personelles"}]
[null,null,null,null,"Prest.",{"$f":"IF(F31=Liste!C8,Liste!D8,IF(Home!F31=Liste!C9,Liste!D9,IF(Home!F31=Liste!C10,Liste!D10,IF(Home!F31=Liste!C11,Liste!D11,\"\"))))","v":"Traitement solde - Versement Centrale"}]

{"sheet":"Cotisations","index":1,"n_rows":69,"n_cols":17,"rows_kept":69,"cut":false,"hidden":true,"merged":[[68,4,69,12],[52,4,52,11],[55,4,55,12],[57,5,57,6],[57,9,57,10],[60,7,60,12],[65,4,67,12],[50,5,50,11],[31,4,31,5],[31,6,31,12],[34,4,34,12],[36,4,36,11],[38,7,38,8],[38,10,38,11],[40,4,40,11],[42,4,42,11],[44,4,44,11],[46,6,46,8],[46,9,46,10],[16,5,16,8],[16,10,16,12],[18,4,18,5],[18,6,18,12],[29,5,29,8],[29,10,29,12],[14,2,14,14],[0,4,1,12],[7,5,7,7],[7,10,7,12],[8,9,9,12],[12,5,12,6],[12,9,12,10]]}
[null,null,null,null,"Fiche de transmission de solde à liquider",null,null,null,null,null,null,null,null,null,null,"Veuillez remplir les colonnes avec les éléments demandés :"]
[]
[null,null,null,null,null,null,null,null,null,null,null,null,null,null,null,"N° décompte","Montant du décompte"]
[null,null,null,null,"Le solde à traiter se trouve dans la comptabilité auxiliaire Globaz de :",null,null,null,null,{"$f":"Home!J4","v":"CCVD"}]
[]
[]
[]
[null,null,null,null,"NOM :",{"$f":"Home!F8","v":0},null,null,null,{"$f":"Home!J8","v":"NIP :"},{"$f":"Home!K8","v":0}]
[null,null,null,null,null,{"$f":"IF(F8=\"\",\"Veuillez remplir le champ, ci-dessus!\",\"\")","v":""},null,null,null,{"$f":"IF(K8=\"\",\"Veuillez remplir le champ, ci-dessus avec le NIP/NSS du compte annexe concerné!\",\"\")","v":""}]
[]
[]
[]
[]
[]
[null,null,"Le traitement de solde \"Cotisations\" étant inexistant pour le régime PC Familles, \nveuillez sélectionner \"Home\" et choisir l'option \"Prestations\"!"]
[null,null,null,null,"Rôle :"]
[null,null,null,null,"Traitement :","Irrécouvrable - Cotisations paritaires",null,null,null,"Pour CHF :",{"$f":"SUM(Q4:Q23)","v":0}]
[null,null,null,null,null,null,null,{"$f":"IF(SUM(Q4:Q23)=0,\"Veuillez remplir le tableau avec le montant par décompte!\",\"\")","v":"Veuillez remplir le tableau avec le montant par décompte!"}]
[null,null,null,null,"Décomptes/sections :",null,{"$f":"CONCATENATE(P4,IF(P4=\"\",\"\",\",\"),\" \",P5,IF(P5=\"\",\"\",\",\"),\" \",P6,IF(P6=\"\",\"\",\",\"),\" \",P7,IF(P7=\"\",\"\",\",\"),\" \",P8,IF(P8=\"\",\"\",\",\"),\" \",P9,IF(P9=\"\",\"\",\",\"),\" \",P10,IF(P10=\"\",\"\",\",\"),\" \",P11,IF(P11=\"\",\"\",\",\"),\" \",P12,IF(P12=\"\",\"\",\",\"),\" \",P13,IF(P13=\"\",\"\",\",\"),\" \",P14,IF(P14=\"\",\"\",\",\"),\" \",P15,IF(P15=\"\",\"\",\",\"),\" \",P16,IF(P16=\"\",\"\",\",\"),\" \",P17,IF(P17=\"\",\"\",\",\"),\" \",P18,IF(P18=\"\",\"\",\",\"),\" \",P19,IF(P19=\"\",\"\",\",\"),\" \",P20,IF(P20=\"\",\"\",\",\"),\" \",P21,IF(P21=\"\",\"\",\",\"),\" \",P22,IF(P22=\"\",\"\",\",\"),\" \",P23)","v":"                   "}]
[null,null,null,null,{"$f":"IF(SUM(P4:P23)=0,\"Veuillez remplir le tableau avec les numéros de décomptes concernés!\",\"\")","v":"Veuillez remplir le tableau avec les numéros de décomptes concernés!"}]
[]
[null,null,null,null,{"$f":"IF(F17=\"Irrécouvrable - Cotisations paritaires\",\"Le décompte de l'aspect pénal en vue d'une plainte a été fait?\",\"\")&IF(F17=\"Irrécouvrable - Cotisations paritaires + RDO\",\"Le décompte de l'aspect pénal en vue d'une plainte a été fait?\",\"\")&IF(F17=\"RDO\",\"Le décompte de l'aspect pénal en vue d'une plainte a été fait?\",\"\")","v":"Le décompte de l'aspect pénal en vue d'une plainte a été fait?"}]
[]
[null,null,null,null,{"$f":"IF(F17=\"Irrécouvrable - Cotisations paritaires\",\"Est-ce que l'analyse du dommage causé a été établie?\",\"\")","v":"Est-ce que l'analyse du dommage causé a été établie?"}]
[]
[null,null,null,null,{"$f":"IF(F17=\"Irrécouvrable - Cotisations paritaires\",\"Est-ce que cela a donné lieu à une décision de réparation de dommage?\",\"\")","v":"Est-ce que cela a donné lieu à une décision de réparation de dommage?"}]
[]
[]
[null,null,null,null,"Rôle :","APG"]
[null,null,null,null,"Traitement :","Récupération d'irrécouvrable",null,null,null,"Pour CHF :",{"$f":"SUM(Q4:Q23)","v":0}]
[null,null,null,null,null,null,null,{"$f":"IF(SUM(Q4:Q23)=0,\"Veuillez remplir le tableau avec le montant par décompte!\",\"\")","v":"Veuillez remplir le tableau avec le montant par décompte!"}]
[null,null,null,null,"Décomptes/sections :",null,{"$f":"CONCATENATE(P4,IF(P4=\"\",\"\",\",\"),\" \",P5,IF(P5=\"\",\"\",\",\"),\" \",P6,IF(P6=\"\",\"\",\",\"),\" \",P7,IF(P7=\"\",\"\",\",\"),\" \",P8,IF(P8=\"\",\"\",\",\"),\" \",P9,IF(P9=\"\",\"\",\",\"),\" \",P10,IF(P10=\"\",\"\",\",\"),\" \",P11,IF(P11=\"\",\"\",\",\"),\" \",P12,IF(P12=\"\",\"\",\",\"),\" \",P13,IF(P13=\"\",\"\",\",\"),\" \",P14,IF(P14=\"\",\"\",\",\"),\" \",P15,IF(P15=\"\",\"\",\",\"),\" \",P16,IF(P16=\"\",\"\",\",\"),\" \",P17,IF(P17=\"\",\"\",\",\"),\" \",P18,IF(P18=\"\",\"\",\",\"),\" \",P19,IF(P19=\"\",\"\",\",\"),\" \",P20,IF(P20=\"\",\"\",\",\"),\" \",P21,IF(P21=\"\",\"\",\",\"),\" \",P22,IF(P22=\"\",\"\",\",\"),\" \",P23)","v":"                   "}]
[null,null,null,null,{"$f":"IF(SUM(P4:P23)=0,\"Veuillez remplir le tableau avec les numéros de décomptes concernés!\",\"\")","v":"Veuillez remplir le tableau avec les numéros de décomptes concernés!"}]
[]
[null,null,null,null,"Justifications & Contrôles"]
[]
[null,null,null,null,"Une analyse d'éventuelles compensations telles qu'autorisées dans les Directives sur la Perception des cotisations (DP 7001), dans les Directives sur les Rentes (DR 10802/10907 et suivants) et dans les Directives sur les allocations familiales (DaFAM 802.2) a été effectuée :"]
[]
[null,null,null,null,"Acte de défaut de biens :"]
[]
[null,null,null,null,"Les poursuites sont considérées comme infructueuses ou manifestement sans chance de succès pour les prochains décomptes après l'ADB "]
[]
[null,null,null,null,"Enregistrement dans Globaz du motif de blocage du contentieux comme \"insolvable notoire\""]
[]
[null,null,null,null,"Nous confirmons avoir examiné que suite à la réception de l'ADB, une poursuite pour ce tiers n'aurait aucun succès."]
[]
[null,null,null,null,"Parti sans laisser d'adresse"]
[]
[null,null,null,null,"Succession répudiée ou non ouverte"]
[]
[null,null,null,null,"Autres Motifs :"]
[null,null,null,null,{"$f":"IF(F51=\"\",\"Veuillez remplir le champ, ci-dessus!\",\"\")","v":"Veuillez remplir le champ, ci-dessus!"}]
[null,null,null,null,"Si les prestations continuent d'être versée au tiers : Nous avons vérifié et documenté dans le dossier que les revenus du tiers ne sont pas supérieurs au minimum vital du droit des poursuites et faillites",null,null,null,null,null,null,null,"Non"]
[]
[]
[null,null,null,null,"Validation & Transmission de l'information"]
[]
[null,null,null,null,"Transmis par :",null,null,null,"Date :"]
[null,null,null,null,null,null,null,null,{"$f":"IF(J58=\"\",\"Veuillez remplir le champ, ci-dessus!\",\"\")","v":"Veuillez remplir le champ, ci-dessus!"}]
[null,null,null,null,"Motif de blocage du contentieux modifié dans Globaz"]
[null,null,null,null,"Spécifié la raison de la modification :"]
[null,null,null,null,{"$f":"IF(H61=\"\",\"Veuillez remplir le champ, ci-dessus!\",\"\")","v":"Veuillez remplir le champ, ci-dessus!"}]
[null,null,null,null,"Dossier supérieur à CHF 10'000.--, visa de la Direction (Hors dossiers RDO et Récupération d'irrécouvrable)"]
[]
[]
[null,null,null,null,{"$f":"IF(F17=\"Irrécouvrable - Cotisations paritaires\",IF(AND(M22=\"oui\",M24=\"oui\"),\"\",\"Veuillez contrôler vos sélections dans la 1ère partie du tableau ! \")&IF(OR(M26=\"oui\",M37=\"oui\",M39=\"oui\",M41=\"oui\",M45=\"oui\",M47=\"oui\",M49=\"oui\",M51=\"oui\",M53=\"oui\"),\"\",\"Veuillez sélectionner une justification dans la partie Justificatifs & Contrôles !\"),\"\")","v":"Veuillez contrôler vos sélections dans la 1ère partie du tableau ! Veuillez sélectionner une justification dans la partie Justificatifs & Contrôles !"}]
[]
[]
[null,null,null,null,{"$f":"IF(OR(M26=\"oui\",M37=\"oui\",M39=\"oui\",M41=\"oui\",M45=\"oui\",M47=\"oui\",M49=\"oui\",M51=\"oui\",M53=\"oui\"),\"\",\"Veuillez sélectionner une justification dans la partie Justificatifs & Contrôles !\")","v":"Veuillez sélectionner une justification dans la partie Justificatifs & Contrôles !"}]

{"sheet":"Prestations","index":2,"n_rows":69,"n_cols":17,"rows_kept":69,"cut":false,"hidden":true,"merged":[[68,4,69,12],[52,4,52,11],[55,4,55,12],[57,5,57,6],[57,9,57,10],[60,7,60,12],[65,4,67,12],[50,5,50,11],[31,4,31,5],[31,6,31,12],[34,4,34,12],[36,4,36,11],[38,7,38,8],[38,10,38,11],[40,4,40,11],[42,4,42,11],[44,4,44,11],[46,6,46,8],[46,9,46,10],[16,5,16,8],[16,10,16,12],[18,4,18,5],[18,6,18,12],[29,5,29,8],[29,10,29,12],[0,4,1,12],[7,5,7,7],[7,10,7,12],[8,9,9,12],[12,5,12,6],[12,9,12,10]]}
[null,null,null,null,"Fiche de transmission de solde à liquider",null,null,null,null,null,null,null,null,null,null,"Veuillez remplir les colonnes avec les éléments demandés :"]
[]
[null,null,null,null,null,null,null,null,null,null,null,null,null,null,null,"N° décompte","Montant du décompte"]
[null,null,null,null,"Le solde à traiter se trouve dans la comptabilité auxiliaire Globaz de :",null,null,null,null,{"$f":"Home!J4","v":"CCVD"}]
[]
[]
[]
[null,null,null,null,"NOM :",{"$f":"Home!F8","v":0},null,null,null,"NIP :",{"$f":"Home!K8","v":0}]
[null,null,null,null,null,{"$f":"IF(F8=\"\",\"Veuillez remplir le champ, ci-dessus!\",\"\")","v":""},null,null,null,{"$f":"IF(K8=\"\",\"Veuillez remplir le champ, ci-dessus avec le NIP/NSS du compte annexe concerné!\",\"\")","v":""}]
[]
[]
[]
[]
[]
[]
[null,null,null,null,"Rôle :","Affilié"]
[null,null,null,null,"Traitement :","Irrécouvrable - Cotisations paritaires",null,null,null,"Pour CHF :",{"$f":"SUM(Q4:Q23)","v":0}]
[null,null,null,null,null,null,null,{"$f":"IF(SUM(Q4:Q23)=0,\"Veuillez remplir le tableau avec le montant par décompte!\",\"\")","v":"Veuillez remplir le tableau avec le montant par décompte!"}]
[null,null,null,null,"Décomptes/sections :",null,{"$f":"CONCATENATE(P4,IF(P4=\"\",\"\",\",\"),\" \",P5,IF(P5=\"\",\"\",\",\"),\" \",P6,IF(P6=\"\",\"\",\",\"),\" \",P7,IF(P7=\"\",\"\",\",\"),\" \",P8,IF(P8=\"\",\"\",\",\"),\" \",P9,IF(P9=\"\",\"\",\",\"),\" \",P10,IF(P10=\"\",\"\",\",\"),\" \",P11,IF(P11=\"\",\"\",\",\"),\" \",P12,IF(P12=\"\",\"\",\",\"),\" \",P13,IF(P13=\"\",\"\",\",\"),\" \",P14,IF(P14=\"\",\"\",\",\"),\" \",P15,IF(P15=\"\",\"\",\",\"),\" \",P16,IF(P16=\"\",\"\",\",\"),\" \",P17,IF(P17=\"\",\"\",\",\"),\" \",P18,IF(P18=\"\",\"\",\",\"),\" \",P19,IF(P19=\"\",\"\",\",\"),\" \",P20,IF(P20=\"\",\"\",\",\"),\" \",P21,IF(P21=\"\",\"\",\",\"),\" \",P22,IF(P22=\"\",\"\",\",\"),\" \",P23)","v":"                   "}]
[null,null,null,null,{"$f":"IF(SUM(P4:P23)=0,\"Veuillez remplir le tableau avec les numéros de décomptes concernés!\",\"\")","v":"Veuillez remplir le tableau avec les numéros de décomptes concernés!"}]
[]
[null,null,null,null,{"$f":"IF(F17=\"Irrécouvrable - Cotisations paritaires\",\"Le décompte de l'aspect pénal en vue d'une plainte a été fait?\",\"\")&IF(F17=\"Irrécouvrable - Cotisations paritaires + RDO\",\"Le décompte de l'aspect pénal en vue d'une plainte a été fait?\",\"\")&IF(F17=\"RDO\",\"Le décompte de l'aspect pénal en vue d'une plainte a été fait?\",\"\")","v":"Le décompte de l'aspect pénal en vue d'une plainte a été fait?"},null,null,null,null,null,null,null,"Non"]
[]
[null,null,null,null,{"$f":"IF(F17=\"Irrécouvrable - Cotisations paritaires\",\"Est-ce que l'analyse du dommage causé a été établie?\",\"\")","v":"Est-ce que l'analyse du dommage causé a été établie?"},null,null,null,null,null,null,null,"Non"]
[]
[null,null,null,null,{"$f":"IF(F17=\"Irrécouvrable - Cotisations paritaires\",\"Est-ce que cela a donné lieu à une décision de réparation de dommage?\",\"\")","v":"Est-ce que cela a donné lieu à une décision de réparation de dommage?"},null,null,null,null,null,null,null,"Non"]
[]
[]
[null,null,null,null,"Rôle :"]
[null,null,null,null,"Traitement :",null,null,null,null,"Pour CHF :",{"$f":"SUM(Q4:Q23)","v":0}]
[null,null,null,null,null,null,null,{"$f":"IF(SUM(Q4:Q23)=0,\"Veuillez remplir le tableau avec le montant par décompte!\",\"\")","v":"Veuillez remplir le tableau avec le montant par décompte!"}]
[null,null,null,null,"Décomptes/sections :",null,{"$f":"CONCATENATE(P4,IF(P4=\"\",\"\",\",\"),\" \",P5,IF(P5=\"\",\"\",\",\"),\" \",P6,IF(P6=\"\",\"\",\",\"),\" \",P7,IF(P7=\"\",\"\",\",\"),\" \",P8,IF(P8=\"\",\"\",\",\"),\" \",P9,IF(P9=\"\",\"\",\",\"),\" \",P10,IF(P10=\"\",\"\",\",\"),\" \",P11,IF(P11=\"\",\"\",\",\"),\" \",P12,IF(P12=\"\",\"\",\",\"),\" \",P13,IF(P13=\"\",\"\",\",\"),\" \",P14,IF(P14=\"\",\"\",\",\"),\" \",P15,IF(P15=\"\",\"\",\",\"),\" \",P16,IF(P16=\"\",\"\",\",\"),\" \",P17,IF(P17=\"\",\"\",\",\"),\" \",P18,IF(P18=\"\",\"\",\",\"),\" \",P19,IF(P19=\"\",\"\",\",\"),\" \",P20,IF(P20=\"\",\"\",\",\"),\" \",P21,IF(P21=\"\",\"\",\",\"),\" \",P22,IF(P22=\"\",\"\",\",\"),\" \",P23)","v":"                   "}]
[null,null,null,null,{"$f":"IF(SUM(P4:P23)=0,\"Veuillez remplir le tableau avec les numéros de décomptes concernés!\",\"\")","v":"Veuillez remplir le tableau avec les numéros de décomptes concernés!"}]
[]
[null,null,null,null,"Justifications & Contrôles"]
[]
[null,null,null,null,"Une analyse d'éventuelles compensations telles qu'autorisées dans les Directives sur la Perception des cotisations (DP 7001), dans les Directives sur les Rentes (DR 10802/10907 et suivants) et dans les Directives sur les allocations familiales (DaFAM 802.2) a été effectuée :"]
[]
[null,null,null,null,"Acte de défaut de biens :"]
[]
[null,null,null,null,"Les poursuites sont considérées comme infructueuses ou manifestement sans chance de succès pour les prochains décomptes après l'ADB "]
[]
[null,null,null,null,"Enregistrement dans Globaz du motif de blocage du contentieux comme \"insolvable notoire\""]
[]
[null,null,null,null,"Nous confirmons avoir examiné que suite à la réception de l'ADB, une poursuite pour ce tiers n'aurait aucun succès."]
[]
[null,null,null,null,"Parti sans laisser d'adresse"]
[]
[null,null,null,null,"Succession répudiée ou non ouverte"]
[]
[null,null,null,null,"Autres Motifs :"]
[null,null,null,null,{"$f":"IF(F51=\"\",\"Veuillez remplir le champ, ci-dessus!\",\"\")","v":"Veuillez remplir le champ, ci-dessus!"}]
[null,null,null,null,"Si les prestations continuent d'être versée au tiers : Nous avons vérifié et documenté dans le dossier que les revenus du tiers ne sont pas supérieurs au minimum vital du droit des poursuites et faillites"]
[]
[]
[null,null,null,null,"Validation & Transmission de l'information"]
[]
[null,null,null,null,"Transmis par :",null,null,null,"Date :"]
[null,null,null,null,null,null,null,null,{"$f":"IF(J58=\"\",\"Veuillez remplir le champ, ci-dessus!\",\"\")","v":"Veuillez remplir le champ, ci-dessus!"}]
[null,null,null,null,"Motif de blocage du contentieux modifié dans Globaz"]
[null,null,null,null,"Spécifié la raison de la modification :"]
[null,null,null,null,{"$f":"IF(H61=\"\",\"Veuillez remplir le champ, ci-dessus!\",\"\")","v":"Veuillez remplir le champ, ci-dessus!"}]
[null,null,null,null,"Dossier supérieur à CHF 10'000.--, visa de la Direction (Hors dossiers RDO et Récupération d'irrécouvrable)"]
[]
[]
[null,null,null,null,{"$f":"IF(F17=\"Irrécouvrable - Cotisations paritaires\",IF(AND(M22=\"oui\",M24=\"oui\"),\"\",\"Veuillez contrôler vos sélections dans la 1ère partie du tableau ! \")&IF(OR(M26=\"oui\",M37=\"oui\",M39=\"oui\",M41=\"oui\",M45=\"oui\",M47=\"oui\",M49=\"oui\",M51=\"oui\",M53=\"oui\"),\"\",\"Veuillez sélectionner une justification dans la partie Justificatifs & Contrôles !\"),\"\")","v":"Veuillez contrôler vos sélections dans la 1ère partie du tableau ! Veuillez sélectionner une justification dans la partie Justificatifs & Contrôles !"}]
[]
[]
[null,null,null,null,{"$f":"IF(OR(M26=\"oui\",M37=\"oui\",M39=\"oui\",M41=\"oui\",M45=\"oui\",M47=\"oui\",M49=\"oui\",M51=\"oui\",M53=\"oui\"),\"\",\"Veuillez sélectionner une justification dans la partie Justificatifs & Contrôles !\")","v":"Veuillez sélectionner une justification dans la partie Justificatifs & Contrôles !"}]

{"sheet":"Liste","index":3,"n_rows":18,"n_cols":8,"rows_kept":18,"cut":false,"hidden":true,"merged":[]}
["AGLA","Assuré","Récupération d'irrécouvrable","Traitement irréc - Crédit cotisations","Oui","Coti - PCI",{"$f":"IF(Home!M24=\"Non\",0,1)","v":1},"NIP :"]
["AGRIVIT","Non Affilié","Irrécouvrable - Cotisations personnelles","Traitement irréc - Cotis personelles","Non","Coti - PSA",{"$f":"IF(Home!M26=\"Non\",0,1)","v":1},"NSS :"]
["CCVD","Administrateur","Irrécouvrable - Cotisations paritaires","Traitement irréc - Cotis paritaires",null,"Coti - Employeur",{"$f":"SUM(G1:G2)","v":2}]
["PC Familles","Affilié","Irrécouvrable - Cotisations paritaires + RDO","Traitement irréc - RDO",null,"Juridique",{"$f":"IF(G3>=2,0,1)","v":0}]
[null,"APG","RDO","Traitement irréc - RDO",null,"Recouvrement",{"$f":"IF(Home!#REF!=\"Non\",0,1)","v":{"$error":"#REF!"}}]
[null,"IJAI","Extourne RDO","Traitement RDO - Extourne RDO",null,"RFM",{"$f":"IF(Home!M39=\"Non\",0,1)","v":1}]
[null,"AF","Paiement non imputable (à reverser à la Centrale)","Traitement solde - Versement Centrale",null,"PC",{"$f":"IF(Home!M41=\"Non\",0,1)","v":1}]
[null,"Rentes (Rente, PC, RFM)","Irrécouvrable de prestations à restituer","Traitement irréc - Prestations",null,"Rentes",{"$f":"IF(Home!M43=\"Non\",0,1)","v":1}]
[null,"PC Familles","Extourne de prestations (indues, erreurs)","Traitement prestations - Extourne",null,"IJAI",{"$f":"IF(Home!#REF!=\"Non\",0,1)","v":{"$error":"#REF!"}}]
[null,"FCF","Récupération d'irrécouvrable","Traitement irréc - Crédit prestations",null,"APG",{"$f":"IF(Home!M45=\"Non\",0,1)","v":1}]
[null,"ALLMAT Cant.","Paiement non imputable (à reverser à la Centrale)","Traitement solde - Versement Centrale",null,"ALLMAT",{"$f":"IF(Home!M47=\"Non\",0,1)","v":1}]
[null,"AF",null,null,null,"PC Famillies",{"$f":"IF(Home!M53=\"Non\",0,1)","v":1}]
[null,null,null,null,null,"FCF",{"$f":"IF(Home!#REF!=\"Non\",0,1)","v":{"$error":"#REF!"}}]
[null,null,null,null,null,"AF",{"$f":"IF(Home!M61=\"Non\",0,1)","v":1}]
[null,null,null,null,null,null,{"$f":"IF(Home!M65=\"Non\",0,1)","v":1}]
[null,null,null,null,null,null,{"$f":"SUM(G5:G15)","v":{"$error":"#REF!"}}]
[null,null,null,null,null,null,{"$f":"IF(G16>0,0,1)","v":{"$error":"#REF!"}}]
[null,null,null,null,null,"Total",{"$f":"G17+G4","v":{"$error":"#REF!"}}]

{"sheet":"Feuil3","index":4,"n_rows":0,"n_cols":0,"rows_kept":0,"cut":false,"hidden":true,"merged":[]}